{"text_format":"1","workbook":"xlsx","n_sheets":3,"sheets":["別記様式第２号-1（事業実施主体用）","事務費","別記様式第２号-2（取組主体用）"],"not_rendered":{"charts":0,"images":0,"macros":1,"external_links":0,"defined_names":6,"comments":0,"pivot_tables":0},"unopened":[],"bounds":{"document_bytes":16777216,"sheet_cells":100000,"rows_first":2000,"rows_last":500,"rows_between":2000,"halvings":0,"cell_chars":16384,"cell_head_chars":4096},"cells_cut":0,"cells_raw":0,"read":"whole","date_system":"1900"}

{"sheet":"別記様式第２号-1（事業実施主体用）","index":0,"n_rows":39,"n_cols":13,"rows_kept":39,"cut":false,"hidden":false,"merged":[[38,0,39,9],[11,0,11,1],[11,2,11,6],[13,0,13,1],[13,2,13,6],[12,0,12,1],[12,2,12,6],[10,12,16,12],[10,11,16,11],[2,0,2,9],[10,2,10,6],[5,2,5,6],[6,2,6,6],[7,2,7,6],[8,2,8,6],[9,2,9,6],[5,0,5,1],[7,0,9,1],[10,0,10,1],[6,0,6,1],[9,11,9,12]]}
["別記様式第２号－１（事業実施主体用）"]
[]
["園芸用出荷資材価格高騰対策事業費補助金　園芸用出荷資材支払状況報告書"]
[]
["１　事業実施主体"]
["事業実施主体"]
["住所"]
["連絡先",null,"TEL：　　　　　　"]
[null,null,"FAX："]
[null,null,"E-mail：",null,null,null,null,null,null,null,null,"要件チェック"]
["担当者の職・氏名",null,null,null,null,null,null,null,null,null,null,"1戸当たりの補助金額が２万円未満の場合は補助対象外","１戸当たりの栽培面積が概ね10a未満の場合は補助対象外"]
["補助金交付申請額",null,{"$f":"C13+C14","v":0},null,null,null,null,"自動入力"]
["うち出荷資材費",null,{"$f":"J38","v":0},null,null,null,null,"自動入力"]
["うち事務的経費",null,{"$f":"事務費!H30","v":0},null,null,null,null,"自動入力"]
[]
["２　取組主体",null,null,null,null,null,"入力不要",null,"自動計算","自動計算"]
["No","生産者名","住所","品目名","栽培面積\n(a)","出荷資材名","支払金額\n（税込み）\n（円）","支払金額\n（税抜き）\n（円）","補助対象\n経費\n（円）","補助金額\n（円）"]
[1,null,null,null,null,null,null,null,{"$f":"H18*0.119","v":0},{"$f":"ROUNDDOWN(H18*0.119*1/2,-3)","v":0},null,{"$f":"IF(E18>=8,\"OK\",\"補助対象外\")","v":"補助対象外"},{"$f":"IF(J18>=20000,\"OK\",\"補助対象外\")","v":"補助対象外"}]
[2,null,null,null,null,null,null,null,{"$f":"H19*0.119","v":0},{"$f":"ROUNDDOWN(H19*0.119*1/2,-3)","v":0},null,{"$f":"IF(E19>=8,\"OK\",\"補助対象外\")","v":"補助対象外"},{"$f":"IF(J19>=20000,\"OK\",\"補助対象外\")","v":"補助対象外"}]
[3,null,null,null,null,null,null,null,0,0,null,"補助対象外","補助対象外"]
[4,null,null,null,null,null,null,null,0,0,null,"補助対象外","補助対象外"]
[5,null,null,null,null,null,null,null,0,0,null,"補助対象外","補助対象外"]
[6,null,null,null,null,null,null,null,0,0,null,"補助対象外","補助対象外"]
[7,null,null,null,null,null,null,null,0,0,null,"補助対象外","補助対象外"]
[8,null,null,null,null,null,null,null,0,0,null,"補助対象外","補助対象外"]
[9,null,null,null,null,null,null,null,0,0,null,"補助対象外","補助対象外"]
[10,null,null,null,null,null,null,null,0,0,null,"補助対象外","補助対象外"]
[11,null,null,null,null,null,null,null,0,0,null,"補助対象外","補助対象外"]
[12,null,null,null,null,null,null,null,0,0,null,"補助対象外","補助対象外"]
[13,null,null,null,null,null,null,null,0,0,null,"補助対象外","補助対象外"]
[14,null,null,null,null,null,null,null,0,0,null,"補助対象外","補助対象外"]
[15,null,null,null,null,null,null,null,0,0,null,"補助対象外","補助対象外"]
[16,null,null,null,null,null,null,null,0,0,null,"補助対象外","補助対象外"]
[17,null,null,null,null,null,null,null,0,0,null,"補助対象外","補助対象外"]
[18,null,null,null,null,null,null,null,0,0,null,"補助対象外","補助対象外"]
[19,null,null,null,null,null,null,null,0,0,null,"補助対象外","補助対象外"]
[20,null,null,null,null,null,null,null,0,0,null,"補助対象外","補助対象外"]
[null,null,null,null,null,null,"合計",{"$f":"SUM(H15:H37)","v":0},{"$f":"SUM(I15:I37)","v":0},{"$f":"SUM(J15:J37)","v":0}]
["※取組主体ごとの支払状況報告書（別記様式第２号－２）及び出荷資材ごとの名称、金額、支払日及び支払先が確認できる証拠書類（領収書等）の写しを取組主体番号ごとに整理し、添付すること。"]

{"sheet":"事務費","index":1,"n_rows":31,"n_cols":10,"rows_kept":31,"cut":false,"hidden":false,"merged":[[25,2,25,6],[26,2,26,6],[27,2,27,6],[28,2,28,6],[20,2,20,6],[21,2,21,6],[22,2,22,6],[23,2,23,6],[24,2,24,6],[15,2,15,6],[16,2,16,6],[17,2,17,6],[18,2,18,6],[19,2,19,6],[10,2,10,6],[11,2,11,6],[12,2,12,6],[13,2,13,6],[14,2,14,6],[8,2,8,6],[2,0,2,7],[5,0,5,1],[5,2,5,6],[9,2,9,6]]}
["別記様式第２号－１（事業実施主体用） 別紙"]
[]
["園芸用出荷資材価格高騰対策事業費補助金　事務的経費申請様式"]
[]
["１　事業実施主体"]
["事業実施主体",null,{"$f":"'別記様式第２号-1（事業実施主体用）'!C6","v":0}]
[]
["２　事務的経費一覧"]
[null,"経費項目","内容",null,null,null,null,"補助対象経費"]
[1]
[2]
[3]
[4]
[5]
[6]
[7]
[8]
[9]
[10]
[11]
[12]
[13]
[14]
[15]
[16]
[17]
[18]
[19]
[20]
[null,"※事務的経費の裏付けとなる根拠書類を添付すること。",null,null,null,null,"事務費申請額",{"$f":"ROUNDDOWN(MIN(SUM(H10:H29),H31),-3)","v":0},null,"※上限額の範囲内で千円未満切り捨て（自動計算）"]
[null,null,null,null,null,null,"（参考）事務費申請上限額",{"$f":"'別記様式第２号-1（事業実施主体用）'!I38*0.03","v":0},null,"※補助対象経費の3%以内（自動計算）"]

{"sheet":"別記様式第２号-2（取組主体用）","index":2,"n_rows":36,"n_cols":13,"rows_kept":36,"cut":false,"hidden":false,"merged":[[7,0,7,1],[0,11,2,12],[16,6,16,7],[5,11,5,12],[6,11,11,11],[6,12,11,12],[2,0,2,9],[5,0,5,1],[5,2,5,6],[6,0,6,1],[6,2,6,6],[7,2,7,6]]}
["別記様式第２号－２（取組主体用）",null,null,null,null,null,null,null,"JA等記入欄　取組主体番号",null,null,"※JA等が生産者番号を整理する際に使用（任意で1,2,3,4,5…と入力）"]
[]
["園芸用出荷資材価格高騰対策事業費補助金　園芸用出荷資材支払状況報告書"]
[]
["１　取組主体"]
["生産者名",null,null,null,null,null,null,null,null,null,null,"要件チェック"]
["住所",null,null,null,null,null,null,null,null,null,null,"１戸当たりの補助金額が２万円未満の場合は補助対象外","１戸当たりの栽培面積が概ね10a未満の場合は補助対象外"]
["連絡先",null,"TEL：　　　　　　"]
[]
["２　申請内容"]
[null,"自動入力","自動入力",null,null,null,"入力不要","自動計算","自動計算","自動計算"]
[null,"生産者名","住所","品目名","栽培面積\n(a)","出荷資材名","支払金額\n（税込み）\n（円）","支払金額\n（税抜き）\n（円）","補助対象\n経費\n（円）","補助金額\n（円）"]
[1,{"$f":"C6","v":0},{"$f":"C7","v":0},null,null,null,null,{"$f":"SUM(H19:H33)","v":0},{"$f":"H13*0.119","v":0},{"$f":"ROUNDDOWN(H13*0.119*1/2,-3)","v":0},null,{"$f":"IF(E13>=8,\"OK\",\"補助対象外\")","v":"補助対象外"},{"$f":"IF(J13>=20000,\"OK\",\"補助対象外\")","v":"補助対象外"}]
["※栽培面積は園芸作物の合計面積を入力すること（概ね10a以上が補助対象）。"]
["※補助金額が20,000円未満の場合は補助対象外。"]
[]
["３　園芸用出荷資材の内訳",null,null,null,null,null,"「税込み」又は「税抜き」\nいずれかに直接入力\n（証拠書類の金額に合わせる）"]
[null,"生産者名","住所","品目名","栽培面積\n(a)","出荷資材名","支払金額\n（税込み）\n（円）","支払金額\n（税抜き）\n（円）","補助対象\n経費\n（円）","補助金額\n（円）"]
[1,null,null,null,null,null,null,{"$f":"G19/1.1","v":0}]
[2,null,null,null,null,null,null,{"$f":"G20/1.1","v":0}]
[3,null,null,null,null,null,null,0]
[4,null,null,null,null,null,null,0]
[5,null,null,null,null,null,null,0]
[6,null,null,null,null,null,null,0]
[7,null,null,null,null,null,null,0]
[8,null,null,null,null,null,null,0]
[9,null,null,null,null,null,null,0]
[10,null,null,null,null,null,null,0]
[11,null,null,null,null,null,null,0]
[12,null,null,null,null,null,null,0]
[13,null,null,null,null,null,null,0]
[14,null,null,null,null,null,null,0]
[15,null,null,null,null,null,null,0]
["※補助対象となる出荷資材ごとに出荷資材名及び支払金額（税込み又は税抜き）を入力すること。"]
["※出荷資材ごとの名称、金額、支払日及び支払先が確認できる証拠書類（領収書等）の写しを添付すること。"]
["※内訳に記載の支払金額と証拠書類に記載の金額が一致していることが確認できるよう書類を整理すること。"]